bitfinex/quotes_BTCUSD_20250602
["timestamp","ask_amount","ask_price","bid_price","bid_amount"]
[1748879430839,0.02048349,104370.0,104360.0,0.69156139]
[1748879431052,0.04258415,104370.0,104360.0,0.78741569]
[1748879434733,0.05216462,104370.0,104360.0,0.78741569]
[1748879434940,0.04258415,104370.0,104360.0,0.78741569]
[1748879437148,0.04258415,104370.0,104360.0,0.35247016]
[1748879437341,0.07132629,104370.0,104360.0,0.7869356]
[1748879437540,0.07132619,104370.0,104360.0,0.7869356]
[1748879437743,0.06174536,104370.0,104360.0,0.7869356]
[1748879437980,0.04258415,104370.0,104360.0,0.7869356]
[1748879438570,0.04258415,104370.0,104360.0,1.1269356]
[1748879439163,0.02958415,104370.0,104360.0,1.1259356]
[1748879439716,0.02258415,104370.0,104360.0,1.1249356]
[1748879439918,0.02358415,104370.0,104360.0,1.1249356]
[1748879440323,0.02458415,104370.0,104360.0,1.1249356]
[1748879440518,0.00248349,104370.0,104360.0,1.1249356]
[1748879440723,0.00248349,104370.0,104360.0,1.52624099]
[1748879441172,0.00248349,104370.0,104360.0,1.1249356]
[1748879441393,0.00248349,104370.0,104360.0,1.52624099]
[1748879441598,0.00148349,104370.0,104360.0,1.60465927]
[1748879441803,0.00048349,104370.0,104360.0,1.1249356]
[1748879442006,0.00048349,104370.0,104360.0,1.1269356]
[1748879442295,0.00048349,104370.0,104360.0,1.5269356]
[1748879443283,0.00048349,104370.0,104360.0,1.5289356]
[1748879443725,0.00048349,104370.0,104360.0,1.5288156]
[1748879446279,0.0009,104410.0,104400.0,0.60817696]
[1748879446509,0.00104501,104410.0,104400.0,1.12501126]
[1748879447672,0.00104501,104410.0,104400.0,1.12701126]
[1748879448247,0.00104501,104410.0,104400.0,1.12901126]
[1748879450424,0.00104501,104410.0,104400.0,1.13150058]
[1748879451394,0.00104501,104410.0,104400.0,1.53280597]
[1748879452554,0.00104501,104410.0,104400.0,1.55492551]
[1748879453547,0.00104501,104410.0,104400.0,1.56946636]
[1748879453804,0.00104501,104410.0,104400.0,1.97077175]
[1748879453957,0.00104501,104410.0,104400.0,1.98077175]
[1748879454615,0.57078577,104480.0,104470.0,0.22015777]
[1748879454891,0.59439562,104480.0,104470.0,0.24445774]
[1748879455088,0.64257613,104480.0,104470.0,0.24445774]
[1748879455217,0.65214724,104480.0,104470.0,0.24445774]
[1748879455407,0.61846407,104480.0,104470.0,0.24445774]
[1748879455608,0.61846407,104480.0,104470.0,0.3901093]
[1748879455609,0.02796452,104480.0,104470.0,0.3901093]
[1748879456228,0.01903419,104480.0,104470.0,0.8259636]
[1748879456734,0.02796254,104480.0,104470.0,0.8432636]
[1748879456946,0.0001391,104480.0,104470.0,0.8432636]
[1748879457150,0.0011391,104480.0,104470.0,0.8432636]
[1748879457587,0.0001391,104480.0,104470.0,0.8412636]
[1748879457907,0.0011391,104480.0,104470.0,1.1860236]
[1748879459072,0.0011391,104480.0,104470.0,1.81044633]
[1748879459805,0.0011391,104480.0,104470.0,1.1860236]
[1748879460170,0.0011391,104480.0,104470.0,1.81044633]
[1748879460368,0.0011391,104480.0,104470.0,1.89762162]
[1748879460568,0.0011391,104480.0,104470.0,1.91964118]
[1748879460799,0.0011391,104480.0,104470.0,1.89762162]
[1748879461001,0.0011391,104480.0,104470.0,1.90762162]
[1748879461250,0.0011391,104480.0,104470.0,1.90962162]
[1748879461455,0.028727,104530.0,104520.0,0.26782402]
[1748879461658,0.0286954,104540.0,104530.0,0.25140298]
[1748879461863,0.04833597,104540.0,104530.0,0.25140298]
[1748879462065,0.07754019,104540.0,104530.0,0.25140298]
[1748879462252,0.06797485,104540.0,104530.0,0.28199]
[1748879462475,0.27841977,104540.0,104530.0,0.28199018]
[1748879462651,0.27842041,104540.0,104530.0,0.28199]
[1748879462875,0.27842041,104540.0,104530.0,0.28199009]
[1748879463015,0.27842041,104540.0,104530.0,0.27242401]
[1748879463217,0.07754056,104540.0,104530.0,0.29155617]
[1748879463581,0.04884489,104540.0,104530.0,0.29155617]
[1748879463784,0.02012289,104540.0,104530.0,0.29155617]
[1748879463987,0.04125331,104540.0,104530.0,0.28199018]
[1748879464163,0.05081875,104540.0,104530.0,0.28199018]
[1748879464371,0.02212289,104540.0,104530.0,0.29155617]
[1748879464574,0.24213233,104540.0,104530.0,0.28199018]
[1748879464747,0.24213233,104540.0,104530.0,0.2724241]
[1748879464951,0.25169786,104540.0,104530.0,0.2875241]
[1748879465127,0.24213224,104540.0,104530.0,0.30665635]
[1748879465335,0.26126302,104540.0,104530.0,0.2875241]
[1748879465565,0.02212289,104540.0,104530.0,0.30665635]
[1748879465765,0.02212289,104540.0,104530.0,0.74251065]
[1748879466021,0.02206015,104540.0,104530.0,0.74251065]
[1748879466469,0.03162504,104540.0,104530.0,0.74251065]
[1748879466677,0.03162504,104540.0,104530.0,0.49781288]
[1748879466678,0.24207087,104540.0,104530.0,0.49781288]
[1748879466888,0.24207087,104540.0,104530.0,0.80274152]
[1748879467093,0.23250562,104540.0,104530.0,0.80643858]
[1748879467303,0.05075564,104540.0,104530.0,1.02647018]
[1748879467503,0.06032117,104540.0,104530.0,1.02647036]
[1748879467654,0.25163549,104540.0,104530.0,1.0168641]
[1748879467866,0.06032117,104540.0,104530.0,1.03599635]
[1748879468225,0.04119011,104540.0,104530.0,1.03599635]
[1748879468424,0.06032062,104540.0,104530.0,1.03599635]
[1748879468619,0.06032052,104540.0,104530.0,1.03599635]
[1748879468822,0.02206015,104540.0,104530.0,1.03599635]
[1748879469029,0.03162522,104540.0,104530.0,1.03599635]
[1748879469229,0.02206015,104540.0,104530.0,1.13185065]
[1748879469653,0.03162513,104540.0,104530.0,1.13185065]
[1748879469878,0.03162513,104540.0,104530.0,1.13181065]
[1748879470489,0.04119029,104540.0,104530.0,1.13181065]
[1748879470702,0.03162513,104540.0,104530.0,1.13181065]
[1748879470906,0.02206015,104540.0,104530.0,1.13181065]
[1748879471126,0.02206015,104540.0,104530.0,1.14691065]
[1748879471537,0.02206015,104540.0,104530.0,1.16301065]
[1748879471763,0.00242118,104540.0,104530.0,1.16301065]
[1748879473676,0.00930788,104540.0,104530.0,1.16301065]
[1748879473934,0.00142118,104540.0,104530.0,1.16301065]
[1748879474149,0.01030776,104540.0,104530.0,1.16301065]
[1748879474354,0.00142118,104540.0,104530.0,0.75861065]
[1748879474557,0.01030692,104540.0,104530.0,0.75861065]
[1748879474758,0.00142118,104540.0,104530.0,1.16285065]
[1748879475178,0.01030699,104540.0,104530.0,0.75861065]
[1748879475386,0.01030702,104540.0,104530.0,1.16285065]
[1748879475586,0.00142118,104540.0,104530.0,1.16285065]
[1748879475987,0.0103027,104540.0,104530.0,0.75861065]
[1748879476120,0.00142118,104540.0,104530.0,1.16281065]
[1748879476563,0.00142118,104540.0,104530.0,0.75861065]
[1748879476805,0.00142118,104540.0,104530.0,1.16277065]
[1748879478015,0.01030259,104540.0,104530.0,1.16277065]
[1748879478218,0.00142118,104540.0,104530.0,1.16277065]
[1748879478848,0.00142118,104540.0,104530.0,1.78719338]
[1748879478849,0.01030221,104540.0,104530.0,1.78719338]
[1748879479064,0.00142118,104540.0,104530.0,1.78719338]
[1748879479426,0.00142118,104540.0,104530.0,1.56277065]
[1748879479627,0.01030203,104540.0,104530.0,1.56277065]
[1748879479830,0.00142118,104540.0,104530.0,1.56377065]
[1748879480031,0.00142118,104540.0,104530.0,1.25733065]
[1748879480298,0.00142118,104540.0,104530.0,1.56373065]
[1748879480438,0.01030258,104540.0,104530.0,1.61373065]
[1748879480647,0.00142118,104540.0,104530.0,1.61373065]
[1748879480835,0.00930237,104540.0,104530.0,1.21373065]
[1748879481035,0.00042118,104540.0,104530.0,1.21473065]
[1748879481735,0.00930248,104540.0,104530.0,0.81061065]
[1748879481983,0.00042118,104540.0,104530.0,0.84349065]
[1748879482198,0.00930357,104540.0,104530.0,1.18349065]
[1748879482412,0.00042118,104540.0,104530.0,0.84349065]
[1748879482881,0.00998607,104540.0,104530.0,0.84349065]
[1748879483111,0.00930383,104540.0,104530.0,1.18349065]
[1748879483317,0.00042118,104540.0,104530.0,1.18349065]
[1748879483531,0.00042118,104540.0,104530.0,0.77941065]
[1748879483742,0.20130039,104540.0,104530.0,0.72303755]
[1748879483960,0.0346516,104540.0,104530.0,1.1462098]
[1748879484161,0.0346516,104540.0,104530.0,1.1738843]
[1748879484162,0.0530999,104540.0,104530.0,1.1738843]
[1748879484372,0.04421676,104540.0,104530.0,1.1238843]
[1748879484873,0.0537822,104540.0,104530.0,0.7198443]
[1748879485108,0.04421676,104540.0,104530.0,1.1238843]
[1748879485323,0.0346515,104540.0,104530.0,1.1238843]
[1748879485767,0.0346515,104540.0,104530.0,1.1228843]
[1748879485984,0.0346515,104540.0,104530.0,1.1218843]
[1748879486199,0.03396933,104540.0,104530.0,1.1218843]
[1748879486448,0.04353458,104540.0,104530.0,1.1218843]
[1748879486636,0.03396933,104540.0,104530.0,1.1218843]
[1748879486873,0.04353458,104540.0,104530.0,1.1218843]
[1748879487315,0.04386487,104540.0,104530.0,1.1218843]
[1748879487540,0.03496933,104540.0,104530.0,1.1218843]
[1748879487766,0.04386485,104540.0,104530.0,1.1218843]
[1748879488242,0.04386483,104540.0,104530.0,1.1218843]
[1748879488466,0.0445344,104540.0,104530.0,1.1218843]
[1748879488687,0.05342982,104540.0,104530.0,1.1218843]
[1748879488885,0.02876475,104540.0,104530.0,1.1218843]
[1748879489057,0.01986924,104540.0,104530.0,1.1218843]
[1748879489259,0.0479042,104540.0,104530.0,1.1218843]
[1748879489464,0.02877378,104540.0,104530.0,1.1218843]
[1748879489845,0.02880906,104540.0,104530.0,0.6901698]
[1748879490061,0.01030426,104540.0,104530.0,1.1218443]
[1748879490263,0.01924406,104540.0,104530.0,1.1218443]
[1748879490461,0.01986915,104540.0,104530.0,1.1218443]
[1748879490663,0.01030426,104540.0,104530.0,1.1218443]
[1748879490874,0.02880893,104540.0,104530.0,1.1218443]
[1748879491042,0.01986915,104540.0,104530.0,1.1218443]
[1748879491241,0.038374,104540.0,104530.0,1.1218443]
[1748879491458,0.01986915,104540.0,104530.0,1.1215643]
[1748879491689,0.01030426,104540.0,104530.0,1.1215643]
[1748879491945,0.04390916,104540.0,104530.0,1.1215643]
[1748879492145,0.02540426,104540.0,104530.0,1.0938898]
[1748879492368,0.25174955,104540.0,104530.0,0.46885156]
[1748879492589,0.25174955,104540.0,104530.0,0.63599082]
[1748879492833,0.22556542,104530.0,104520.0,0.53940799]
[1748879493034,0.25040652,104530.0,104520.0,0.54897544]
[1748879493170,0.05907391,104530.0,104520.0,1.0090711]
[1748879493368,0.06863981,104530.0,104520.0,1.3490711]
[1748879493594,0.27910561,104530.0,104520.0,1.0090711]
[1748879493801,0.27909775,104530.0,104520.0,1.3490711]
[1748879494332,0.28009775,104530.0,104520.0,1.3490711]
[1748879494672,0.27116449,104530.0,104520.0,1.3490711]
[1748879495259,0.27053167,104530.0,104520.0,1.34907147]
[1748879495469,0.25203224,104530.0,104520.0,0.89854271]
[1748879495599,0.25203224,104530.0,104520.0,1.31182989]
[1748879495813,0.22285093,104520.0,104510.0,0.29258385]
[1748879496014,0.22285093,104520.0,104510.0,0.21420276]
[1748879496015,0.07989186,104520.0,104510.0,0.21420276]
[1748879496277,0.08945867,104520.0,104510.0,0.65516508]
[1748879496406,0.09839323,104520.0,104510.0,0.69859157]
[1748879496647,0.09839335,104520.0,104510.0,0.69859157]
[1748879496855,0.08882599,104520.0,104510.0,0.69959157]
[1748879497052,0.07395867,104520.0,104510.0,0.69959157]
[1748879497333,0.04525742,104520.0,104510.0,0.69859157]
[1748879497540,0.09248554,104520.0,104510.0,0.69859157]
[1748879497745,0.09311831,104520.0,104510.0,0.69859157]
[1748879497966,0.14674699,104530.0,104520.0,0.0276745]
[1748879498175,0.1556813,104530.0,104520.0,0.06266629]
[1748879498389,0.17547399,104530.0,104520.0,0.06266629]
[1748879498811,0.1844083,104530.0,104520.0,0.06266629]
[1748879499018,0.18440831,104530.0,104520.0,0.06266629]
[1748879499258,0.18504053,104530.0,104520.0,0.06266629]
[1748879499434,0.18604053,104530.0,104520.0,0.06266629]
[1748879499813,0.19560679,104530.0,104520.0,0.0276745]
[1748879499978,0.20454115,104530.0,104520.0,0.0276745]
[1748879500178,0.19560679,104530.0,104520.0,0.0276745]
[1748879500394,0.20091829,104520.0,104510.0,0.40372]
[1748879500594,0.20985287,104520.0,104510.0,0.20463476]
[1748879500801,0.21048556,104520.0,104510.0,0.20463476]
[1748879501026,0.21751829,104520.0,104510.0,0.00369706]
[1748879501307,0.21751829,104520.0,104510.0,0.24187753]
[1748879502258,0.22645295,104520.0,104510.0,0.25144562]
[1748879502461,0.21751829,104520.0,104510.0,0.26101362]
[1748879502666,0.22645289,104520.0,104510.0,0.26101362]
[1748879502868,0.21751829,104520.0,104510.0,0.26101362]
[1748879503478,0.22005291,104520.0,104510.0,0.26101362]
[1748879504122,0.22898157,104520.0,104510.0,0.27058153]
[1748879504294,0.02870125,104520.0,104510.0,0.27058089]
[1748879504514,0.03762992,104520.0,104510.0,0.27058089]
[1748879504852,0.02870125,104520.0,104510.0,0.27058089]
[1748879504971,0.03762989,104520.0,104510.0,0.27058089]
[1748879505172,0.27646636,104520.0,104510.0,0.26101307]
[1748879505377,0.26753773,104520.0,104510.0,0.26101307]
[1748879505790,0.27647898,104520.0,104510.0,0.26101307]
[1748879506434,0.26691217,104520.0,104510.0,0.24187716]
[1748879506646,0.26690396,104520.0,104510.0,0.25144516]
[1748879506837,0.25733687,104520.0,104510.0,0.23230907]
[1748879507035,0.25733687,104520.0,104510.0,0.25144525]
[1748879507244,0.24840384,104520.0,104510.0,0.25144525]
[1748879507655,0.24840384,104520.0,104510.0,0.26101316]
[1748879507884,0.05641804,104520.0,104510.0,0.26101316]
[1748879508031,0.05641749,104520.0,104510.0,0.28708098]
[1748879508241,0.06598476,104520.0,104510.0,0.28708098]
[1748879508447,0.07555383,104520.0,104510.0,0.28708098]
[1748879508733,0.0564192,104520.0,104510.0,0.28708098]
[1748879508934,0.0659863,104520.0,104510.0,0.28708098]
[1748879509156,0.02835056,104520.0,104510.0,0.28708098]
[1748879509357,0.02835056,104520.0,104510.0,0.30298098]
[1748879509471,0.0280682,104520.0,104510.0,0.30298098]
[1748879509673,0.00956672,104520.0,104510.0,0.30298098]
[1748879510367,0.22961945,104520.0,104510.0,0.2392408]
[1748879510564,0.23552039,104520.0,104510.0,0.60827476]
[1748879510796,0.22595324,104520.0,104510.0,0.40733706]
[1748879511007,0.21701838,104520.0,104510.0,0.60827476]
[1748879511205,0.22595333,104520.0,104510.0,0.6274114]
[1748879511379,0.21701838,104520.0,104510.0,0.61784313]
[1748879511587,0.21901838,104520.0,104510.0,0.6274114]
[1748879511792,0.22795341,104520.0,104510.0,0.6274114]
[1748879511991,0.21901838,104520.0,104510.0,0.66465408]
[1748879512201,0.21901838,104520.0,104510.0,0.64551763]
[1748879512407,0.22795342,104520.0,104510.0,0.64551763]
[1748879512787,0.22795433,104520.0,104500.0,0.21035285]
[1748879512993,0.22007379,104510.0,104500.0,0.09752]
[1748879513198,0.23190579,104510.0,104500.0,0.09752]
[1748879513877,0.24084324,104510.0,104500.0,0.09752]
[1748879514118,0.20095674,104500.0,104490.0,0.53510293]
[1748879514328,0.20095674,104500.0,104490.0,0.85075322]
[1748879514941,0.20095674,104500.0,104490.0,0.08211534]
[1748879515091,0.19140587,104490.0,104480.0,0.72950582]
[1748879515309,0.01962278,104490.0,104480.0,0.77632154]
[1748879515507,0.0291927,104490.0,104480.0,0.78589238]
[1748879515705,0.01962278,104490.0,104480.0,1.12589238]
[1748879516088,0.01962287,104490.0,104480.0,1.14139238]
[1748879516441,0.02919234,104490.0,104480.0,1.14139238]
[1748879516649,0.00048358,104490.0,104480.0,1.14139238]
[1748879516890,0.00048358,104490.0,104480.0,1.23724668]
[1748879517644,0.01801393,104490.0,104480.0,1.23924668]
[1748879517856,0.01801393,104490.0,104480.0,1.24124668]
[1748879519614,0.02758339,104490.0,104480.0,1.24124668]
[1748879520451,0.03715313,104490.0,104480.0,1.24124668]
[1748879520836,0.03715304,104490.0,104480.0,1.24124668]
[1748879521056,0.04672278,104490.0,104480.0,1.24124668]
[1748879521500,0.23812948,104490.0,104480.0,1.19703471]
[1748879521741,0.22855974,104490.0,104480.0,1.09136939]
[1748879521922,0.22855974,104490.0,104480.0,0.99572695]
[1748879522072,0.22855974,104490.0,104480.0,1.00529806]
[1748879522285,0.22855974,104490.0,104480.0,0.58279575]
[1748879522486,0.23428991,104490.0,104480.0,0.12869156]
[1748879522764,0.23428991,104490.0,104480.0,0.12969156]
[1748879522923,0.23428991,104490.0,104480.0,0.10201706]
[1748879523123,0.2247198,104490.0,104480.0,0.32111575]
[1748879523327,0.2247198,104490.0,104480.0,0.13926276]
[1748879523768,0.23365572,104490.0,104480.0,0.13926276]
[1748879523969,0.23365572,104490.0,104480.0,0.00469706]
[1748879524109,0.2247198,104490.0,104480.0,0.22379575]
[1748879524320,0.2094198,104490.0,104480.0,0.03237156]
[1748879524942,0.21935572,104490.0,104480.0,0.03237156]
[1748879525342,0.21935572,104490.0,104480.0,0.23336686]
[1748879525551,0.21935572,104490.0,104480.0,0.25803788]
[1748879525975,0.2104198,104490.0,104480.0,0.24846686]
[1748879526174,0.21935571,104490.0,104480.0,0.24846686]
[1748879526335,0.22035571,104490.0,104480.0,0.24846686]
[1748879526902,0.22035571,104490.0,104480.0,0.04747156]
[1748879527106,0.22035571,104490.0,104480.0,0.03137156]
[1748879527660,0.22035571,104490.0,104480.0,0.00369706]
[1748879527863,0.23615571,104490.0,104480.0,0.00369706]
[1748879528059,0.20099521,104480.0,104470.0,0.10101706]
[1748879528261,0.20099521,104480.0,104470.0,0.45049156]
[1748879528738,0.20099521,104480.0,104470.0,0.42281706]
[1748879529076,0.20099521,104480.0,104470.0,0.01949706]
[1748879529483,0.20099521,104480.0,104470.0,0.02049706]
[1748879529703,0.20099521,104480.0,104470.0,0.22151169]
[1748879530046,0.23467558,104480.0,104470.0,0.001]
[1748879530664,0.33249036,104480.0,104470.0,0.001]
[1748879531080,0.33349036,104480.0,104470.0,0.001]
[1748879531693,0.33249036,104480.0,104470.0,0.001]
[1748879531909,0.33449036,104480.0,104470.0,0.001]
[1748879532524,0.20101445,104470.0,104460.0,0.0276745]
[1748879533905,0.02871755,104460.0,104450.0,0.72931893]
[1748879534468,0.03829105,104460.0,104450.0,0.69207121]
[1748879534793,0.04786409,104460.0,104450.0,0.6824979]
[1748879534991,0.23932493,104460.0,104450.0,0.71017277]
[1748879535198,0.0287181,104460.0,104450.0,0.69207167]
[1748879535417,0.0287181,104460.0,104450.0,0.70264498]
[1748879535598,0.0287181,104460.0,104450.0,0.73031948]
[1748879536162,0.0287181,104460.0,104450.0,1.03623948]
[1748879536791,0.00957249,104460.0,104450.0,1.03623948]
[1748879537036,0.1116543,104480.0,104470.0,0.19144251]
[1748879537245,0.31599164,104480.0,104470.0,0.20674251]
[1748879537423,0.22013734,104480.0,104470.0,0.22588629]
[1748879537648,0.2105665,104480.0,104470.0,0.21631454]
[1748879538363,0.20299539,104480.0,104470.0,0.21631454]
[1748879538572,0.20499539,104480.0,104470.0,0.21631454]
[1748879539418,0.20499539,104480.0,104470.0,0.27171388]
[1748879540931,0.20499539,104480.0,104470.0,0.26214203]
[1748879541142,0.20499539,104480.0,104470.0,0.21631454]
[1748879542342,0.20499539,104480.0,104470.0,0.20674251]
[1748879542534,0.19542419,104480.0,104470.0,0.0153]
[1748879543293,0.19542419,104480.0,104470.0,0.20674251]
[1748879543427,0.19542419,104480.0,104470.0,0.21631463]
[1748879544281,0.19542419,104480.0,104470.0,0.22588666]
[1748879546404,0.19542419,104480.0,104470.0,0.28036774]
[1748879546587,0.19542419,104480.0,104470.0,0.27079571]
[1748879546813,0.19542419,104480.0,104470.0,0.0153]
[1748879549085,0.004,104480.0,104470.0,0.68752232]
[1748879549291,0.004,104480.0,104470.0,0.68512933]
[1748879549498,0.01357047,104480.0,104470.0,0.68512933]
[1748879549934,0.03271206,104480.0,104470.0,0.68512933]
[1748879550137,0.04228299,104480.0,104470.0,0.68512933]
[1748879550345,0.03271197,104480.0,104470.0,0.68512933]
[1748879551129,0.01357047,104480.0,104470.0,0.68512933]
[1748879551303,0.02314113,104480.0,104470.0,0.68512933]
[1748879551733,0.01357038,104480.0,104470.0,0.68512933]
[1748879551882,0.004,104480.0,104470.0,0.78098363]
[1748879553103,0.01357047,104480.0,104470.0,0.78098363]
[1748879553927,0.004,104480.0,104470.0,0.78098363]
[1748879554508,0.02314103,104480.0,104470.0,0.78098363]
[1748879554731,0.004,104480.0,104470.0,0.78098363]
[1748879554886,0.01357047,104480.0,104470.0,0.78098363]
[1748879555049,0.004,104480.0,104470.0,0.78098363]
[1748879556091,0.004,104480.0,104470.0,1.12098363]
[1748879579654,0.004,104480.0,104470.0,1.52098363]
[1748879580145,0.004,104480.0,104470.0,1.12098363]
[1748879583205,0.004,104480.0,104470.0,1.69771128]
[1748879583408,0.004,104480.0,104470.0,1.71225213]
[1748879583847,0.002,104480.0,104470.0,1.71225213]
[1748879584027,0.003,104480.0,104470.0,1.71225213]
[1748879584238,0.003,104480.0,104470.0,2.11225213]
[1748879584423,0.002,104480.0,104470.0,2.11225213]
[1748879584623,0.00941949,104490.0,104480.0,0.25150826]
[1748879584831,0.00941949,104490.0,104480.0,0.71896256]
[1748879585034,0.02519941,104520.0,104510.0,0.26754508]
[1748879585239,0.02870125,104520.0,104510.0,0.26760781]
[1748879585646,0.05394934,104520.0,104510.0,0.26760781]
[1748879585820,0.05394934,104520.0,104510.0,0.25150781]
[1748879585821,0.08289033,104520.0,104510.0,0.25150781]
[1748879586019,0.3050088,104520.0,104510.0,0.25150799]
[1748879586237,0.11365778,104520.0,104510.0,0.2610759]
[1748879586444,0.27730746,104520.0,104510.0,6.273e-05]
[1748879587022,0.38770261,104520.0,104510.0,6.273e-05]
[1748879587231,0.38770261,104520.0,104490.0,0.25145271]
[1748879587232,0.2168561,104500.0,104490.0,0.24188279]
[1748879587516,0.23599402,104500.0,104490.0,0.26102236]
[1748879587725,0.24556339,104500.0,104490.0,0.27059228]
[1748879587914,0.05417566,104500.0,104490.0,0.27059164]
[1748879588269,0.05417566,104500.0,104490.0,0.27259164]
[1748879588484,0.25513258,104500.0,104490.0,0.27259164]
[1748879588711,0.05417566,104500.0,104490.0,0.27259164]
[1748879589344,0.04460647,104500.0,104490.0,0.27259164]
[1748879589808,0.04460647,104500.0,104490.0,0.27459164]
[1748879590202,0.05417566,104500.0,104490.0,0.27459164]
[1748879590401,0.24556321,104500.0,104490.0,0.27459164]
[1748879590597,0.02870629,104500.0,104490.0,0.28959164]
[1748879590784,0.03827548,104500.0,104490.0,0.28959164]
[1748879591586,0.04784458,104500.0,104490.0,0.28959164]
[1748879591969,0.03827539,104500.0,104490.0,0.28959164]
[1748879592288,0.23599051,104510.0,104500.0,0.22009484]
[1748879592735,0.19499051,104510.0,104500.0,0.22009484]
[1748879592929,0.18542251,104510.0,104500.0,0.2105262]
[1748879593435,0.18542251,104510.0,104500.0,0.2115262]
[1748879595620,0.18542251,104510.0,104500.0,0.22109539]
[1748879595880,0.17585424,104510.0,104500.0,0.19238755]
[1748879596078,0.17585424,104510.0,104500.0,0.20195683]
[1748879596533,0.17585424,104510.0,104500.0,0.001]
[1748879596659,0.17585424,104510.0,104500.0,0.19238755]
[1748879596868,0.17585424,104510.0,104500.0,0.2115262]
[1748879597487,0.18481999,104510.0,104500.0,0.2115262]
[1748879597692,0.17525163,104510.0,104500.0,0.2115262]
[1748879598052,0.17525325,104510.0,104500.0,0.2115262]
[1748879598185,0.17525325,104510.0,104500.0,0.20195692]
[1748879598385,0.17525326,104510.0,104500.0,0.20195692]
[1748879598587,0.00956818,104510.0,104500.0,0.30739383]
[1748879598822,0.2200737,104510.0,104500.0,0.30739383]
[1748879599018,0.01913609,104510.0,104500.0,0.30739383]
[1748879599195,0.03827181,104510.0,104500.0,0.32359383]
[1748879599400,0.02870354,104510.0,104500.0,0.32359383]
[1748879599867,0.01913554,104510.0,104500.0,0.32359383]
[1748879600067,0.02870363,104510.0,104500.0,0.32359383]
[1748879600295,0.03767062,104510.0,104500.0,0.32359383]
[1748879600696,0.10793316,104520.0,104510.0,0.21050551]
[1748879600903,0.28398409,104520.0,104510.0,0.25478001]
[1748879601229,0.25525209,104520.0,104510.0,0.28623328]
[1748879601424,0.26481963,104520.0,104510.0,0.25478001]
[1748879601870,0.25625255,104520.0,104510.0,0.0276745]
[1748879602027,0.20093751,104510.0,104500.0,0.51326755]
[1748879602239,0.20093751,104510.0,104490.0,0.70417217]
[1748879602240,0.03827539,104500.0,104490.0,0.70417217]
[1748879602443,0.04724245,104500.0,104490.0,1.03518182]
[1748879602712,0.03827539,104500.0,104490.0,1.03518182]
[1748879603097,0.0287062,104500.0,104490.0,1.03518182]
[1748879603303,0.0382753,104500.0,104490.0,1.03518182]
[1748879603643,0.0382753,104500.0,104490.0,1.03718182]
[1748879604031,0.0287061,104500.0,104490.0,1.03718182]
[1748879604179,0.0287061,104500.0,104490.0,1.03918182]
[1748879604380,0.0281045,104500.0,104490.0,1.03918182]
[1748879604788,0.01853523,104500.0,104490.0,1.03918182]
[1748879605007,0.0185352,104500.0,104490.0,1.03918182]
[1748879605228,0.00956855,104500.0,104490.0,1.03918182]
[1748879605445,0.17847272,104510.0,104500.0,0.23820034]
[1748879605650,0.18804099,104510.0,104500.0,0.24776926]
[1748879606282,0.20717745,104510.0,104500.0,0.25733808]
[1748879606489,0.23314582,104510.0,104500.0,0.24876926]
[1748879606701,0.23314582,104510.0,104500.0,0.24976926]
[1748879607125,0.22007388,104510.0,104500.0,0.25640034]
[1748879607330,0.22964234,104510.0,104500.0,0.26596926]
[1748879608814,0.22007434,104510.0,104500.0,0.25640043]
[1748879609035,0.22007434,104510.0,104500.0,0.26596944]
[1748879609489,0.22007434,104510.0,104500.0,0.27553836]
[1748879609716,0.21050607,104510.0,104500.0,0.23063124]
[1748879609913,0.21050607,104510.0,104500.0,0.24020025]
[1748879610131,0.21050607,104510.0,104500.0,0.25530025]
[1748879610396,0.21050607,104510.0,104500.0,0.26486907]
[1748879611498,0.01913683,104510.0,104500.0,0.26486907]
[1748879611754,0.22007332,104510.0,104500.0,0.26486907]
[1748879611980,0.01913545,104510.0,104500.0,0.2744378]
[1748879612942,0.00956763,104510.0,104500.0,0.2744378]
[1748879613135,0.01913545,104510.0,104500.0,0.2744378]
[1748879613359,0.02870336,104510.0,104500.0,0.2744378]
[1748879613794,0.01913545,104510.0,104500.0,0.2744378]
[1748879614683,0.03827163,104510.0,104500.0,0.2744378]
[1748879614896,0.03827154,104510.0,104500.0,0.2744378]
[1748879615101,0.02870345,104510.0,104500.0,0.2744378]
[1748879615305,0.01913545,104510.0,104500.0,0.2744378]
[1748879616828,0.02870336,104510.0,104500.0,0.2744378]
[1748879617291,0.2356726,104510.0,104500.0,0.0296745]
[1748879617495,0.24463957,104510.0,104500.0,0.24976944]
[1748879617700,0.23567342,104510.0,104500.0,0.24976944]
[1748879618128,0.2446397,104510.0,104500.0,0.25933826]
[1748879618302,0.04430418,104510.0,104500.0,0.25933817]
[1748879618505,0.22964179,104510.0,104500.0,0.25933817]
[1748879618675,0.22964179,104510.0,104500.0,0.27573817]
[1748879618872,0.01913591,104510.0,104500.0,0.35415645]
[1748879619121,0.02870354,104510.0,104500.0,0.29163817]
[1748879619322,0.02810144,104510.0,104500.0,0.29163817]
[1748879619545,0.40394769,104520.0,104510.0,0.23597379]
[1748879619760,0.40394769,104520.0,104510.0,0.23597388]
[1748879620131,0.4129135,104520.0,104510.0,0.23597388]
[1748879620562,0.41391474,104520.0,104510.0,0.23597388]
[1748879620765,0.41391474,104520.0,104510.0,0.29464907]
[1748879620766,0.10320061,104520.0,104510.0,0.29464907]
[1748879621122,0.08406653,104520.0,104510.0,0.29464907]
[1748879621319,0.08406653,104520.0,104510.0,0.34192063]
[1748879621320,0.07549972,104520.0,104510.0,0.34192063]
[1748879621519,0.05573316,104520.0,104510.0,0.34192063]
[1748879621724,0.04676672,104520.0,104510.0,0.34192063]
[1748879621991,0.05573271,104520.0,104510.0,0.64672063]
[1748879622155,0.05573263,104520.0,104510.0,0.64672063]
[1748879622364,0.0557326,104520.0,104510.0,0.64672063]
[1748879622563,0.04676672,104520.0,104510.0,0.64672063]
[1748879622763,0.04676672,104520.0,104510.0,0.74340063]
[1748879623508,0.05573235,104520.0,104510.0,0.74340063]
[1748879624971,0.06529907,104520.0,104510.0,0.74340063]
[1748879625450,0.07426472,104520.0,104510.0,0.74340063]
[1748879625947,0.07424321,104520.0,104510.0,0.74340063]
[1748879626168,0.06529907,104520.0,104510.0,0.74340063]
[1748879626403,0.05573235,104520.0,104510.0,0.74340063]
[1748879626624,0.06529916,104520.0,104510.0,0.74340063]
[1748879626857,0.05573235,104520.0,104510.0,0.74340063]
[1748879627032,0.07424332,104520.0,104510.0,0.74340063]
[1748879627300,0.06529916,104520.0,104510.0,0.74340063]
[1748879627502,0.06529907,104520.0,104510.0,0.74340063]
[1748879627672,0.07424323,104520.0,104510.0,0.74340063]
[1748879627872,0.05573235,104520.0,104510.0,0.74340063]
[1748879629480,0.06529916,104520.0,104510.0,0.74340063]
[1748879629677,0.05573235,104520.0,104510.0,0.74340063]
[1748879629879,0.06529907,104520.0,104510.0,0.74340063]
[1748879630270,0.07486597,104520.0,104510.0,0.74340063]
[1748879630657,0.06529907,104520.0,104510.0,0.74340063]
[1748879632145,0.07486597,104520.0,104510.0,0.74340063]
[1748879632914,0.08443315,104520.0,104510.0,0.74340063]